bitfinex/quotes_SOLUSD_20240829
["timestamp","ask_amount","ask_price","bid_price","bid_amount"]
[1724956716680,50.17731189,141.71,141.62,17.6516]
[1724956716879,50.17731189,141.68,141.54,80.3239]
[1724956717099,50.17731189,141.65,141.58,17.6567]
[1724956717302,50.17731189,141.65,141.6,7.0617]
[1724956717511,57.23581189,141.68,141.58,17.6567]
[1724956717697,50.17731189,141.68,141.61,17.6537]
[1724956717904,50.17731189,141.68,141.61,24.7149]
[1724956718213,57.23581189,141.68,141.61,17.6537]
[1724956718414,50.17731189,141.68,141.57,17.6581]
[1724956718588,50.17731189,141.65,141.53,17.6628]
[1724956718796,7.0621,141.61,141.54,7.0649]
[1724956719012,7.0621,141.61,141.55,7.0645]
[1724956719312,57.23841189,141.62,141.56,17.6602]
[1724956719508,7.0596,141.65,141.6,7.0621]
[1724956719707,7.0596,141.65,141.59,24.719]
[1724956720015,7.0598,141.65,141.59,24.7189]
[1724956720207,50.17731189,141.71,141.61,17.6528]
[1724956720515,7.0572,141.7,141.63,7.0605]
[1724956720902,7.0572,141.7,141.64,7.0601]
[1724956721100,7.0579,141.69,141.64,7.0601]
[1724956722624,7.0579,141.69,141.63,13.0619]
[1724956723021,7.0584,141.68,141.63,13.0619]
[1724956723997,50.17731189,141.71,141.61,24.7142]
[1724956724314,7.0626,141.6,141.58,6.0014]
[1724956724499,50.17731189,141.65,141.58,6.0014]
[1724956724694,7.0612,141.62,141.56,7.064]
[1724956724935,7.0611,141.63,141.57,17.6589]
[1724956725220,50.17731189,141.65,141.55,15.1356]
[1724956725406,7.0611,141.62,141.57,7.0635]
[1724956725922,50.17731189,141.68,141.58,1.41000663]
[1724956726103,20.0,141.67,141.56,17.6594]
[1724956726921,20.0,141.67,141.57,0.12549]
[1724956727098,7.0602,141.64,141.59,7.0626]
[1724956728121,20.0,141.67,141.59,7.0626]
[1724956728420,20.0,141.67,141.55,15.26109]
[1724956728421,7.0596,141.66,141.6,7.0619]
[1724956728623,7.0601,141.64,141.58,17.657]
[1724956728827,20.0,141.67,141.59,0.12549]
[1724956729026,20.0,141.67,141.59,0.25098]
[1724956729323,7.0604,141.64,141.58,24.7201]
[1724956729698,20.0,141.67,141.59,7.18769]
[1724956729903,20.0,141.67,141.59,0.12549]
[1724956730121,20.0,141.67,141.57,0.12549]
[1724956730321,7.0627,141.59,141.55,15.1356]
[1724956730700,7.0621,141.6,141.55,15.1356]
[1724956731111,7.0628,141.59,141.55,15.1356]
[1724956731309,7.0633,141.58,141.55,15.1356]
[1724956731905,7.0632,141.58,141.53,13.0669]
[1724956732099,7.0621,141.6,141.54,17.6627]
[1724956732329,50.17731189,141.62,141.53,6.0014]
[1724956732516,7.0632,141.58,141.53,13.0668]
[1724956732715,7.0638,141.57,141.53,6.0014]
[1724956732929,7.0631,141.58,141.53,13.0669]
[1724956733235,7.0642,141.56,141.53,6.0014]
[1724956733403,7.0637,141.57,141.53,6.0014]
[1724956733604,6.5637,141.57,141.53,6.0014]
[1724956733803,7.0631,141.58,141.53,13.0669]
[1724956734110,7.0638,141.57,141.53,6.0014]
[1724956734313,7.0632,141.58,141.53,13.0668]
[1724956734503,50.17731189,141.62,141.54,0.12549]
[1724956734706,7.0625,141.6,141.55,7.0646]
[1724956734906,7.0631,141.58,141.54,0.12549]
[1724956735105,7.0641,141.57,141.54,0.12549]
[1724956735301,7.0627,141.59,141.54,7.19059]
[1724956735621,50.17731189,141.62,141.53,6.0014]
[1724956736014,42.01621427,141.6,141.53,6.0014]
[1724956736328,7.0646,141.56,141.53,6.0014]
[1724956736626,42.01621427,141.58,141.53,6.0014]
[1724956736810,7.0651,141.54,141.53,6.0014]
[1724956737143,7.0651,141.54,141.5,15.0571]
[1724956737144,7.0652,141.54,141.51,1.41318612]
[1724956737432,7.0667,141.51,141.48,6.4149]
[1724956737611,42.01621427,141.54,141.48,13.483]
[1724956737812,42.01621427,141.58,141.48,24.0842]
[1724956738014,7.0646,141.55,141.5,7.067]
[1724956738230,7.0646,141.55,141.48,24.0842]
[1724956738231,59.67481427,141.58,141.48,24.0842]
[1724956738532,7.0657,141.53,141.48,31.1519]
[1724956738825,7.0652,141.54,141.49,7.0676]
[1724956739734,7.0646,141.56,141.48,6.4149]
[1724956739903,59.67031427,141.61,141.5,1.41318606]
[1724956740231,35.3021,141.64,141.54,7.0647]
[1724956740232,7.0627,141.59,141.54,7.0647]
[1724956740431,7.0641,141.56,141.52,17.6647]
[1724956740732,7.0637,141.57,141.53,7.0655]
[1724956740906,42.01621427,141.61,141.53,7.0655]
[1724956740907,7.0632,141.58,141.53,7.19099]
[1724956741110,42.01621427,141.59,141.5,0.12549]
[1724956741316,7.0637,141.57,141.53,7.0656]
[1724956741502,7.0631,141.58,141.53,7.0656]
[1724956742013,7.0642,141.56,141.52,17.6653]
[1724956742328,6.5637,141.57,141.52,24.7312]
[1724956742823,7.0632,141.58,141.53,7.31638]
[1724956743027,42.01621427,141.59,141.52,17.6653]
[1724956743229,7.0646,141.55,141.5,7.19219]
[1724956743433,59.67351427,141.59,141.5,0.12549]
[1724956743802,7.0642,141.56,141.51,7.0662]
[1724956744039,7.0638,141.57,141.52,7.19129]
[1724956744239,17.6532,141.62,141.52,7.19129]
[1724956744240,7.0633,141.58,141.53,8.47830613]
[1724956744410,42.01621427,141.59,141.51,17.6658]
[1724956744608,42.01621427,141.59,141.51,24.7323]
[1724956744609,7.0642,141.56,141.51,24.7323]
[1724956745028,7.0647,141.55,141.51,17.6658]
[1724956745227,7.0642,141.56,141.51,24.7323]
[1724956745533,7.0637,141.57,141.52,7.0661]
[1724956745831,7.0637,141.57,141.53,0.12549]
[1724956746209,7.0641,141.56,141.53,0.12549]
[1724956746714,7.0641,141.56,141.52,0.25098]
[1724956747312,35.3021,141.64,141.52,7.31708]
[1724956747313,7.0635,141.58,141.52,7.31708]
[1724956747529,7.0631,141.58,141.53,7.0655]
[1724956747741,7.0631,141.58,141.54,0.74982676]
[1724956747917,7.0631,141.58,141.54,15.75588]
[1724956748119,7.0636,141.57,141.54,15.75588]
[1724956748421,7.0629,141.59,141.54,15.63039]
[1724956748614,7.0633,141.58,141.54,15.63039]
[1724956749233,42.01621427,141.61,141.54,15.63039]
[1724956749535,7.0646,141.55,141.54,15.5049]
[1724956749710,7.0639,141.57,141.54,15.5049]
[1724956750422,6.5639,141.57,141.54,15.5049]
[1724956750622,7.0638,141.57,141.54,15.5049]
[1724956750921,42.01621427,141.59,141.5,17.6672]
[1724956751220,42.01621427,141.59,141.51,1.41299631]
[1724956751419,7.0645,141.56,141.51,7.0665]
[1724956751625,7.0646,141.55,141.5,24.7342]
[1724956751932,7.0664,141.52,141.49,15.0867]
[1724956752136,7.0666,141.51,141.49,15.0867]
[1724956752435,7.0666,141.51,141.38,6.22412847]
[1724956752436,7.0685,141.48,141.44,6.3247]
[1724956752746,7.0689,141.47,141.44,6.3247]
[1724956753042,49.08531427,141.47,141.44,6.3247]
[1724956753213,7.0691,141.47,141.44,6.3247]
[1724956753834,42.01621427,141.49,141.44,6.3247]
[1724956754035,42.01621427,141.51,141.44,6.3247]
[1724956754240,7.0672,141.5,141.44,13.3947]
[1724956754618,42.01621427,141.51,141.44,6.3247]
[1724956754820,7.0676,141.49,141.44,6.3247]
[1724956755235,7.0683,141.48,141.44,6.3247]
[1724956755433,49.08381427,141.49,141.44,6.3247]
[1724956756530,42.01621427,141.47,141.44,6.3247]
[1724956756739,42.01621427,141.49,141.44,6.3247]
[1724956756939,49.08281427,141.51,141.45,7.0691]
[1724956757244,49.08201427,141.53,141.47,7.0685]
[1724956757447,49.08121427,141.55,141.49,7.0674]
[1724956757738,58.97,141.6,141.48,1.41019591]
[1724956757739,7.0636,141.57,141.48,33.3233]
[1724956757923,7.0636,141.57,141.51,17.6665]
[1724956758130,7.0636,141.57,141.52,1.53794351]
[1724956758521,7.0636,141.57,141.52,7.19149]
[1724956758918,7.0643,141.56,141.51,17.6665]
[1724956759123,17.6562,141.6,141.49,45.0]
[1724956759124,49.08091427,141.55,141.49,52.0675]
[1724956759427,24.21258583,141.63,141.56,7.064]
[1724956759428,42.01621427,141.63,141.56,7.064]
[1724956759622,7.0616,141.62,141.56,7.064]
[1724956760119,42.01621427,141.63,141.58,7.063]
[1724956760450,17.6466,141.67,141.61,7.0614]
[1724956760451,42.01621427,141.67,141.61,7.0614]
[1724956760629,7.0582,141.68,141.62,8.4706174]
[1724956760937,7.0576,141.7,141.63,8.47119506]
[1724956761319,42.01621427,141.73,141.64,45.25098]
[1724956761519,42.01621427,141.75,141.68,7.058]
[1724956761751,49.07101427,141.75,141.68,7.058]
[1724956761914,49.07101427,141.75,141.67,17.6461]
[1724956761915,7.0558,141.73,141.67,17.6461]
[1724956762121,7.0563,141.72,141.64,45.25098]
[1724956762348,50.32563473,141.67,141.61,6.2474]
[1724956762526,50.32563473,141.74,141.57,22.4521]
[1724956762527,7.0613,141.62,141.57,22.4521]
[1724956762731,7.0608,141.63,141.57,22.4521]
[1724956762934,57.38613473,141.64,141.57,22.4521]
[1724956763128,50.32563473,141.64,141.57,22.4521]
[1724956763327,7.0617,141.61,141.57,22.4521]
[1724956763631,50.32563473,141.61,141.57,6.2474]
[1724956763943,50.32563473,141.66,141.57,6.2474]
[1724956764240,20.0,141.65,141.57,6.2474]
[1724956764545,7.0606,141.63,141.57,13.3109]
[1724956764927,27.0597,141.65,141.57,6.2474]
[1724956765346,27.0597,141.65,141.59,7.0626]
[1724956765642,57.38473473,141.66,141.6,7.0619]
[1724956765852,50.32563473,141.66,141.62,7.0611]
[1724956766016,7.0584,141.68,141.62,7.0611]
[1724956766222,7.0587,141.67,141.61,17.6539]
[1724956766423,50.32563473,141.69,141.62,0.12549]
[1724956766629,7.0586,141.67,141.62,0.12549]
[1724956767037,7.0586,141.67,141.61,24.7155]
[1724956767038,7.0596,141.66,141.61,17.6539]
[1724956767246,7.0586,141.67,141.61,24.7154]
[1724956767446,7.0586,141.67,141.61,19.06583256]
[1724956767626,7.0586,141.67,141.62,0.12549]
[1724956767830,7.0596,141.65,141.61,17.6539]
[1724956768025,7.0592,141.66,141.61,17.6539]
[1724956768527,50.32563473,141.66,141.58,17.6577]
[1724956768946,17.6466,141.67,141.57,6.2474]
[1724956768947,50.32563473,141.63,141.57,6.2474]
[1724956769455,50.32563473,141.6,141.53,6.3994]
[1724956769651,7.0636,141.57,141.53,6.3994]
[1724956769951,50.32563473,141.6,141.53,6.3994]
[1724956769952,7.0631,141.59,141.53,13.4649]
[1724956770123,7.0637,141.57,141.53,6.3994]
[1724956770326,50.32563473,141.57,141.53,6.3994]
[1724956770538,50.32563473,141.57,141.49,6.0218]
[1724956770827,7.0636,141.58,141.53,7.0656]
[1724956771026,50.32563473,141.61,141.5,17.6668]
[1724956771240,7.0651,141.55,141.5,17.6668]
[1724956772137,7.0651,141.55,141.5,24.7337]
[1724956772349,7.0656,141.53,141.49,6.0218]
[1724956772658,50.32563473,141.55,141.49,6.0218]
[1724956772827,50.32563473,141.58,141.5,7.0671]
[1724956773027,7.0656,141.53,141.49,6.0218]
[1724956773329,50.32563473,141.55,141.49,6.0218]
[1724956773930,57.39033473,141.55,141.49,13.0889]
[1724956774133,50.32563473,141.58,141.5,17.6667]
[1724956774349,7.0632,141.58,141.52,7.066]
[1724956774548,7.0638,141.57,141.51,7.0665]
[1724956774753,7.0641,141.56,141.51,7.0663]
[1724956774926,7.0637,141.57,141.51,7.0663]
[1724956775128,7.0637,141.57,141.52,7.0658]
[1724956775745,7.0631,141.59,141.53,1.41290791]
[1724956775953,7.0631,141.58,141.52,17.6641]
[1724956776344,7.0631,141.58,141.53,7.0652]
[1724956776736,7.0625,141.6,141.55,7.0642]
[1724956777258,7.0621,141.6,141.55,7.0646]
[1724956777449,7.0626,141.59,141.54,24.7269]
[1724956778341,7.0622,141.6,141.55,7.0646]
[1724956778736,7.0626,141.59,141.55,7.0646]
[1724956778940,7.0631,141.58,141.54,24.7269]
[1724956779147,50.32563473,141.61,141.53,7.0655]
[1724956779336,7.064,141.57,141.51,24.7322]
[1724956779538,7.064,141.57,141.52,7.19149]
[1724956779746,7.064,141.57,141.53,7.0656]
[1724956780051,7.0627,141.59,141.54,7.0649]
[1724956780257,7.0617,141.61,141.56,7.0639]
[1724956781338,7.0612,141.62,141.57,7.0636]
[1724956781540,7.0617,141.61,141.56,7.064]
[1724956781731,7.0611,141.62,141.57,7.0632]
[1724956782234,7.0617,141.61,141.57,7.0632]
[1724956782858,7.0612,141.62,141.57,7.0632]
[1724956783355,50.32563473,141.68,141.58,1.41250738]
[1724956783540,7.0608,141.63,141.59,7.0626]
[1724956783859,7.0602,141.64,141.59,7.0626]
[1724956784749,7.0607,141.63,141.58,7.0629]
[1724956785146,7.0607,141.63,141.59,7.0624]
[1724956785656,50.32563473,141.62,141.55,7.0642]
[1724956785832,50.32563473,141.62,141.44,7.28943702]
[1724956785833,50.32563473,141.59,141.49,41.3588]
[1724956786038,7.0642,141.56,141.51,24.7321]
[1724956786273,7.0648,141.55,141.51,17.6658]
[1724956786445,49.10063804,141.55,141.51,17.6658]
[1724956786834,7.066,141.53,141.49,6.0218]
[1724956787064,7.0676,141.49,141.42,17.6776]
[1724956787243,7.0682,141.48,141.42,17.6776]
[1724956787443,7.0682,141.48,141.42,24.7482]
[1724956787644,42.03583804,141.51,141.42,17.6776]
[1724956787954,7.0671,141.5,141.42,17.6776]
[1724956788153,50.48206821,141.55,141.45,17.6739]
[1724956788358,20.0,141.54,141.45,17.6739]
[1724956788565,20.0,141.54,141.46,45.25098]
[1724956788857,57.54706821,141.55,141.48,17.67]
[1724956789243,57.54706821,141.55,141.49,7.0675]
[1724956789638,57.54706821,141.55,141.5,7.0668]
[1724956789844,7.0641,141.56,141.51,7.0666]
[1724956790160,7.0631,141.58,141.5,17.6666]
[1724956790366,7.0631,141.58,141.51,0.25098]
[1724956790538,7.064,141.57,141.51,0.25098]
[1724956790856,7.064,141.57,141.52,7.066]
[1724956791055,7.0632,141.58,141.52,7.066]
[1724956791250,7.0632,141.58,141.53,7.0654]
[1724956791453,7.0632,141.58,141.51,0.25098]
[1724956791454,7.0626,141.6,141.54,7.065]
[1724956792464,7.0615,141.62,141.54,17.6617]
[1724956792670,7.0615,141.62,141.55,0.12549]
[1724956793048,7.0607,141.63,141.56,17.6594]
[1724956793444,50.48206821,141.64,141.56,17.6594]
[1724956793445,50.48206821,141.64,141.57,7.0635]
[1724956793665,7.0611,141.62,141.57,7.0635]
[1724956794165,7.063,141.59,141.54,7.0648]
[1724956794379,7.0621,141.6,141.55,7.0646]
[1724956794751,57.54386821,141.61,141.56,7.0639]
[1724956795053,7.0623,141.6,141.55,7.0646]
[1724956795248,7.063,141.59,141.54,24.7268]
[1724956796351,7.0622,141.6,141.55,8.47737998]
[1724956796556,7.0622,141.6,141.55,7.0645]
[1724956796780,7.0622,141.6,141.56,7.0641]
[1724956797651,50.48206821,141.61,141.57,7.0634]
[1724956797861,68.13246821,141.64,141.57,7.0634]
[1724956798161,27.0606,141.63,141.58,7.063]
[1724956798475,27.0606,141.63,141.57,7.0635]
[1724956799477,7.0615,141.62,141.57,7.0635]
[1724956799967,20.0,141.63,141.56,17.6596]
[1724956800348,7.0654,141.54,141.52,30.0]
[1724956800578,26.52986869,141.57,141.49,6.2024]
[1724956800756,50.48206821,141.55,141.49,6.2024]
[1724956800954,7.0646,141.55,141.5,7.0669]
[1724956801172,17.656,141.6,141.49,17.6681]
[1724956801476,50.48206821,141.61,141.51,17.6654]
[1724956801477,20.0,141.59,141.51,17.6654]
[1724956801663,50.48206821,141.61,141.53,17.6629]
[1724956801863,7.0622,141.6,141.53,17.6629]
[1724956802081,7.0626,141.59,141.53,17.6629]
[1724956802376,7.0637,141.57,141.53,17.6629]
[1724956802551,7.0632,141.58,141.53,24.7284]
[1724956802756,7.0637,141.57,141.53,17.6629]
[1724956802969,7.0632,141.58,141.53,24.7283]
[1724956803175,50.48206821,141.61,141.53,24.7283]
[1724956803473,50.48206821,141.61,141.53,17.6629]
[1724956803806,7.0617,141.61,141.56,7.0639]
[1724956804078,44.16836869,141.66,141.56,7.0639]
[1724956804079,7.059,141.67,141.62,7.061]
[1724956804376,7.0582,141.68,141.63,7.0605]
[1724956804872,50.48206821,141.71,141.65,17.6488]
[1724956805088,7.0572,141.7,141.65,24.7083]
[1724956805258,8.87026869,141.72,141.66,1.53465427]
[1724956805259,7.0566,141.72,141.66,1.53465427]
[1724956805572,7.0566,141.72,141.66,0.25098]
[1724956805975,8.87026869,141.76,141.67,17.6455]
[1724956806187,1.22324738,141.8,141.73,7.0555]
[1724956806188,7.0526,141.8,141.73,7.0555]
[1724956806474,7.0526,141.8,141.72,17.6402]
[1724956806475,50.48206821,141.82,141.72,17.6402]
[1724956806682,50.48206821,141.79,141.7,7.0571]
[1724956806849,50.48206821,141.79,141.71,7.0565]
[1724956807053,50.48206821,141.79,141.71,17.6415]
[1724956807272,7.0541,141.76,141.71,24.6981]
[1724956807476,7.0541,141.76,141.71,17.6415]
[1724956807683,7.0541,141.76,141.67,24.7043]
[1724956807684,7.0562,141.72,141.67,24.7043]
[1724956807987,7.0568,141.71,141.64,24.136]
[1724956808154,50.48206821,141.7,141.61,7.0611]
[1724956808362,50.48206821,141.67,141.61,7.0611]
[1724956808562,50.48206821,141.67,141.59,6.2398]
[1724956808880,7.0601,141.65,141.59,13.3022]
[1724956809263,57.54116821,141.67,141.59,23.8962]
[1724956809782,50.48206821,141.67,141.59,23.8962]
[1724956810295,50.48206821,141.68,141.59,17.6564]
[1724956810296,50.48206821,141.64,141.59,17.6564]
[1724956810479,50.48206821,141.64,141.55,17.6608]
[1724956810657,7.0625,141.6,141.55,17.6608]
[1724956811341,7.0606,141.63,141.56,7.0636]
[1724956811585,20.0,141.62,141.57,7.0635]
[1724956811791,7.0607,141.63,141.57,7.0635]
[1724956812192,7.0607,141.63,141.55,17.6608]
[1724956812193,7.06,141.65,141.58,19.06962574]
[1724956812357,7.0591,141.66,141.6,7.062]
[1724956812559,50.48206821,141.68,141.61,7.0616]
[1724956812759,7.0596,141.65,141.59,7.0623]
[1724956812960,50.48206821,141.68,141.61,17.6538]
[1724956813187,7.0586,141.67,141.61,24.7151]
[1724956813586,7.0596,141.65,141.59,7.0622]
[1724956813773,8.87026869,141.66,141.59,7.0625]
[1724956814279,7.0601,141.65,141.59,7.0625]
[1724956814687,7.0604,141.64,141.58,7.0631]
[1724956815477,7.0611,141.63,141.57,17.6582]
[1724956815699,57.54366821,141.62,141.57,17.6582]
[1724956816080,7.0616,141.61,141.57,17.6582]
[1724956816491,6.0616,141.61,141.57,17.6582]
[1724956816877,50.48206821,141.62,141.57,17.6582]
[1724956817096,49.98206821,141.62,141.57,17.6582]
[1724956817270,7.46468198,141.65,141.57,17.6582]
[1724956817475,66.50933041,141.71,141.57,17.6582]
[1724956817697,70.48206821,141.68,141.57,17.6582]
[1724956817898,7.059,141.67,141.61,7.0616]
[1724956818200,7.0597,141.65,141.6,24.7162]
[1724956818378,50.48206821,141.68,141.6,17.6541]
[1724956818827,49.98206821,141.68,141.61,1.41210439]
[1724956819189,49.98206821,141.68,141.6,17.6541]
[1724956819190,7.0598,141.65,141.6,17.6541]
[1724956819384,15.93006869,141.65,141.6,17.6541]
[1724956819584,8.87026869,141.65,141.6,17.6541]
[1724956819897,50.48206821,141.65,141.6,17.6541]
[1724956820099,66.4121369,141.65,141.6,17.6541]
[1724956820287,2.64865889,141.64,141.6,17.6541]
[1724956820598,2.64865889,141.64,141.53,6.2398]
[1724956820803,50.48206821,141.61,141.53,6.2398]
[1724956821098,7.0627,141.59,141.54,17.6628]
[1724956821298,7.0637,141.57,141.51,24.7324]
[1724956821481,50.48206821,141.57,141.51,24.7324]
[1724956821876,57.54586821,141.57,141.52,7.0658]
[1724956822081,50.48206821,141.57,141.53,7.0655]
[1724956822288,7.0633,141.58,141.53,7.0655]
[1724956822590,50.48206821,141.6,141.53,17.6632]
[1724956822790,20.0,141.59,141.53,17.6632]
[1724956823187,50.48206821,141.6,141.53,17.6632]
[1724956823403,7.064,141.57,141.51,7.0662]
[1724956823590,7.064,141.57,141.5,17.6674]
[1724956824208,7.064,141.57,141.46,42.66684196]
[1724956824209,7.0652,141.54,141.47,17.6713]
[1724956824392,7.0652,141.54,141.49,7.0672]
[1724956824912,20.0,141.53,141.47,24.7398]
[1724956825219,7.0646,141.55,141.5,7.0669]
[1724956825681,7.0646,141.55,141.5,8.4800875]
[1724956825881,50.48206821,141.58,141.5,1.4131875]
[1724956826079,20.0,141.57,141.52,7.0659]
[1724956826681,7.0637,141.57,141.52,7.0659]
[1724956827119,7.0648,141.55,141.51,17.6658]
[1724956827283,50.48206821,141.56,141.48,17.6698]
[1724956827483,7.0651,141.54,141.49,7.0672]
[1724956827896,20.0,141.59,141.48,17.6698]
[1724956827897,50.48206821,141.53,141.48,17.6698]
[1724956828095,7.0647,141.55,141.51,7.0666]
[1724956828284,7.0647,141.55,141.5,7.067]
[1724956828887,70.48206821,141.59,141.51,1.41328685]
[1724956829109,70.48206821,141.59,141.5,17.667]
[1724956829294,7.0637,141.57,141.53,7.0655]
[1724956829502,57.54506821,141.59,141.54,8.47802026]
[1724956829704,57.54506821,141.59,141.53,1.41286856]
[1724956829909,26.88145487,141.64,141.54,17.662]
[1724956829910,7.0617,141.61,141.54,17.662]
[1724956830211,7.0617,141.61,141.56,7.064]
[1724956830418,50.48206821,141.62,141.56,17.6592]
[1724956830622,59.3523369,141.65,141.56,17.6592]
[1724956830819,50.48206821,141.62,141.56,17.6592]
[1724956831122,7.0623,141.6,141.56,24.7233]
[1724956831348,50.48206821,141.62,141.56,17.6592]
[1724956831618,7.0601,141.65,141.61,7.0616]
[1724956832114,7.0601,141.65,141.58,17.6574]
[1724956832115,7.0597,141.65,141.58,17.6574]
[1724956832303,7.0597,141.65,141.61,7.0616]
[1724956832500,50.48206821,141.68,141.62,7.0609]
[1724956832703,7.0591,141.66,141.61,7.0615]
[1724956833107,7.0591,141.66,141.62,7.0611]
[1724956833619,7.0587,141.67,141.62,7.0611]
[1724956833916,7.0591,141.66,141.6,17.6549]
[1724956834091,7.0587,141.67,141.62,7.061]
[1724956834510,68.12386821,141.71,141.63,1.41210441]
[1724956834903,68.12386821,141.71,141.62,17.6521]
[1724956835097,7.0583,141.68,141.63,7.0602]
[1724956835299,7.0583,141.68,141.6,7.0618]
[1724956835509,7.0588,141.67,141.61,45.25098]
[1724956836495,7.0596,141.66,141.61,45.25098]
[1724956836809,17.6448,141.69,141.61,0.12549]
[1724956837011,17.6448,141.69,141.6,0.25098]
[1724956837211,7.0601,141.64,141.6,0.25098]
[1724956838319,50.48206821,141.62,141.53,6.3495]
[1724956838515,50.48206821,141.62,141.54,30.0]
[1724956838820,50.48206821,141.62,141.45,35.3457]
[1724956838821,50.48206821,141.59,141.45,35.3457]
[1724956839121,7.0647,141.55,141.51,23.6162]
[1724956839322,7.0652,141.54,141.51,16.5498]
[1724956839513,7.0656,141.53,141.5,17.667]
[1724956839714,7.0651,141.54,141.5,17.667]
[1724956840036,7.0647,141.55,141.5,24.7338]
[1724956840324,7.0652,141.54,141.5,24.7338]
[1724956840508,7.0657,141.53,141.49,13.6566]
[1724956840706,7.0652,141.54,141.5,7.067]
[1724956841015,7.0652,141.54,141.49,13.6566]
[1724956841310,105.79056821,141.61,141.49,13.6566]
[1724956841311,7.066,141.53,141.49,6.5891]
[1724956841535,50.48206821,141.57,141.49,6.5891]
[1724956841823,7.0662,141.52,141.49,6.5891]
[1724956843126,7.0667,141.51,141.47,17.6709]
[1724956843428,7.0667,141.51,141.44,6.0238]
[1724956843429,50.48206821,141.51,141.44,23.6985]
[1724956844206,50.48206821,141.51,141.44,6.0238]
[1724956844929,7.0675,141.5,141.45,7.0695]
[1724956845726,7.0666,141.52,141.46,17.6726]
[1724956846034,37.6606,141.56,141.47,46.41323246]
[1724956846205,7.065,141.55,141.5,7.0671]
[1724956846405,27.0642,141.56,141.51,8.47913269]
[1724956846604,17.657,141.59,141.5,17.6667]
[1724956846605,7.0637,141.57,141.52,7.066]
[1724956846908,7.0649,141.55,141.5,24.7335]
[1724956847103,14.1822878,141.63,141.48,0.25098]
[1724956847104,50.48206821,141.61,141.52,17.6643]
[1724956847430,50.48206821,141.61,141.51,0.12549]
[1724956847431,7.0626,141.59,141.55,17.6614]
[1724956847618,50.48206821,141.61,141.55,26.13853529]
[1724956847927,50.48206821,141.61,141.55,24.7258]
[1724956848802,7.0623,141.6,141.56,7.064]
[1724956849324,7.0607,141.63,141.58,7.0631]
[1724956849530,7.0607,141.63,141.58,8.47548403]
[1724956850022,50.48206821,141.61,141.54,17.6624]
[1724956850406,50.48206821,141.61,141.55,0.12549]
[1724956850603,50.48206821,141.61,141.55,7.18969]
[1724956850814,7.0629,141.59,141.55,0.12549]
[1724956851009,7.0631,141.58,141.54,17.6624]
[1724956851210,7.063,141.59,141.54,24.7274]
[1724956851519,50.48206821,141.61,141.54,24.7274]
[1724956851728,20.0,141.6,141.54,24.7274]
[1724956851924,50.48206821,141.58,141.53,6.1383]
[1724956852123,50.48206821,141.58,141.51,17.666]
[1724956852124,7.0637,141.57,141.51,17.666]
[1724956853024,57.54526821,141.58,141.51,17.666]
[1724956853215,7.0627,141.59,141.55,7.0646]
[1724956854031,7.0627,141.59,141.54,8.47776628]
[1724956854534,27.0622,141.6,141.55,7.0646]
[1724956854739,7.0622,141.6,141.56,8.47663383]
[1724956855332,50.48206821,141.61,141.57,8.47489252]
[1724956855514,7.0607,141.63,141.58,8.47539411]
[1724956855913,7.0616,141.61,141.57,7.0635]
[1724956856369,7.0612,141.62,141.58,7.063]
[1724956856637,7.0602,141.64,141.59,8.47488311]
[1724956857641,2.63906172,141.65,141.58,24.72]
[1724956857813,20.0,141.66,141.58,24.72]
[1724956858130,50.48206821,141.63,141.58,24.72]
[1724956858533,7.0656,141.53,141.49,24.2455]
[1724956858738,50.48206821,141.54,141.5,30.0]
[1724956858919,50.48206821,141.54,141.49,6.5775]
[1724956859113,50.48206821,141.54,141.46,15.2597]